Workbook

Sheet INSTRUCTIONS
A1: DOUBLE CLICK BELOW TO OPEN INSTRUCTIONS

Sheet DASHBOARD
B6: Row Labels | C6: Item | D6: Current (Cyl) | E6: Current (Ltrs) | F6: To Order
B7: Oxygen | C7: Oxy PD4C | D7: 0 | E7: 0 | F7: =IF(D7="","",IF(VLOOKUP(C7,Cylinders!A:D,3,FALSE)>D7,VLOOKUP(C7,Cylinders!A:D,3,FALSE)-D7,0)) -> 0
C8: Oxy E | D8: 0 | E8: 0 | F8: =IF(D8="","",IF(VLOOKUP(C8,Cylinders!A:D,3,FALSE)>D8,VLOOKUP(C8,Cylinders!A:D,3,FALSE)-D8,0)) -> 0
C9: Oxy F4 | D9: 0 | E9: 0 | F9: =IF(D9="","",IF(VLOOKUP(C9,Cylinders!A:D,3,FALSE)>D9,VLOOKUP(C9,Cylinders!A:D,3,FALSE)-D9,0)) -> 0 | AQ9: Action | AR9: Opening Stock
C10: Oxy F4C1T | D10: 0 | E10: 0 | F10: =IF(D10="","",IF(VLOOKUP(C10,Cylinders!A:D,3,FALSE)>D10,VLOOKUP(C10,Cylinders!A:D,3,FALSE)-D10,0)) -> 0
C11: Oxy G | D11: 0 | E11: 0 | F11: =IF(D11="","",IF(VLOOKUP(C11,Cylinders!A:D,3,FALSE)>D11,VLOOKUP(C11,Cylinders!A:D,3,FALSE)-D11,0)) -> 0 | AQ11: Sum of Total Cap (Ltr) | AR11: Column Labels
C12: Oxy SJ | D12: 0 | E12: 0 | F12: =IF(D12="","",IF(VLOOKUP(C12,Cylinders!A:D,3,FALSE)>D12,VLOOKUP(C12,Cylinders!A:D,3,FALSE)-D12,0)) -> 0 | AQ12: Row Labels | AR12: CO2 | AS12: Medical Air | AT12: Nitrous Oxide | AU12: Oxygen | AV12: Entonox | AW12: Helium | AX12: Grand Total
C13: Oxy CD | D13: 0 | E13: 0 | F13: =IF(D13="","",IF(VLOOKUP(C13,Cylinders!A:D,3,FALSE)>D13,VLOOKUP(C13,Cylinders!A:D,3,FALSE)-D13,0)) -> 0 | AQ13: 2020-04-20 | AR13: 0 | AS13: 0 | AT13: 0 | AU13: 0 | AV13: 0 | AW13: 0 | AX13: 0
C14: Oxy D | D14: 0 | E14: 0 | F14: =IF(D14="","",IF(VLOOKUP(C14,Cylinders!A:D,3,FALSE)>D14,VLOOKUP(C14,Cylinders!A:D,3,FALSE)-D14,0)) -> 0 | AQ14: Grand Total | AR14: 0 | AS14: 0 | AT14: 0 | AU14: 0 | AV14: 0 | AW14: 0 | AX14: 0
C15: Oxy HX | D15: 0 | E15: 0 | F15: =IF(D15="","",IF(VLOOKUP(C15,Cylinders!A:D,3,FALSE)>D15,VLOOKUP(C15,Cylinders!A:D,3,FALSE)-D15,0)) -> 0
C16: Oxy J | D16: 0 | E16: 0 | F16: =IF(D16="","",IF(VLOOKUP(C16,Cylinders!A:D,3,FALSE)>D16,VLOOKUP(C16,Cylinders!A:D,3,FALSE)-D16,0)) -> 0
B17: Medical Air | C17: Air E | D17: 0 | E17: 0 | F17: =IF(D17="","",IF(VLOOKUP(C17,Cylinders!A:D,3,FALSE)>D17,VLOOKUP(C17,Cylinders!A:D,3,FALSE)-D17,0)) -> 0
C18: Air F | D18: 0 | E18: 0 | F18: =IF(D18="","",IF(VLOOKUP(C18,Cylinders!A:D,3,FALSE)>D18,VLOOKUP(C18,Cylinders!A:D,3,FALSE)-D18,0)) -> 0
C19: Air G | D19: 0 | E19: 0 | F19: =IF(D19="","",IF(VLOOKUP(C19,Cylinders!A:D,3,FALSE)>D19,VLOOKUP(C19,Cylinders!A:D,3,FALSE)-D19,0)) -> 0
C20: Air SJ | D20: 0 | E20: 0 | F20: =IF(D20="","",IF(VLOOKUP(C20,Cylinders!A:D,3,FALSE)>D20,VLOOKUP(C20,Cylinders!A:D,3,FALSE)-D20,0)) -> 0
C21: Air J | D21: 0 | E21: 0 | F21: =IF(D21="","",IF(VLOOKUP(C21,Cylinders!A:D,3,FALSE)>D21,VLOOKUP(C21,Cylinders!A:D,3,FALSE)-D21,0)) -> 0
B22: CO2 | C22: CO2 C | D22: 0 | E22: 0 | F22: =IF(D22="","",IF(VLOOKUP(C22,Cylinders!A:D,3,FALSE)>D22,VLOOKUP(C22,Cylinders!A:D,3,FALSE)-D22,0)) -> 0
C23: CO2 E | D23: 0 | E23: 0 | F23: =IF(D23="","",IF(VLOOKUP(C23,Cylinders!A:D,3,FALSE)>D23,VLOOKUP(C23,Cylinders!A:D,3,FALSE)-D23,0)) -> 0
C24: CO2 VF | D24: 0 | E24: 0 | F24: =IF(D24="","",IF(VLOOKUP(C24,Cylinders!A:D,3,FALSE)>D24,VLOOKUP(C24,Cylinders!A:D,3,FALSE)-D24,0)) -> 0
C25: CO2 VK | D25: 0 | E25: 0 | F25: =IF(D25="","",IF(VLOOKUP(C25,Cylinders!A:D,3,FALSE)>D25,VLOOKUP(C25,Cylinders!A:D,3,FALSE)-D25,0)) -> 0
B26: Nitrous Oxide | C26: Nitrous E | D26: 0 | E26: 0 | F26: =IF(D26="","",IF(VLOOKUP(C26,Cylinders!A:D,3,FALSE)>D26,VLOOKUP(C26,Cylinders!A:D,3,FALSE)-D26,0)) -> 0
C27: Nitrous F | D27: 0 | E27: 0 | F27: =IF(D27="","",IF(VLOOKUP(C27,Cylinders!A:D,3,FALSE)>D27,VLOOKUP(C27,Cylinders!A:D,3,FALSE)-D27,0)) -> 0
C28: Nitrous G | D28: 0 | E28: 0 | F28: =IF(D28="","",IF(VLOOKUP(C28,Cylinders!A:D,3,FALSE)>D28,VLOOKUP(C28,Cylinders!A:D,3,FALSE)-D28,0)) -> 0
B29: Entonox | C29: Equinox AD | D29: 0 | E29: 0 | F29: =IF(D29="","",IF(VLOOKUP(C29,Cylinders!A:D,3,FALSE)>D29,VLOOKUP(C29,Cylinders!A:D,3,FALSE)-D29,0)) -> 0
C30: Equinox F | D30: 0 | E30: 0 | F30: =IF(D30="","",IF(VLOOKUP(C30,Cylinders!A:D,3,FALSE)>D30,VLOOKUP(C30,Cylinders!A:D,3,FALSE)-D30,0)) -> 0
C31: Equinox G | D31: 0 | E31: 0 | F31: =IF(D31="","",IF(VLOOKUP(C31,Cylinders!A:D,3,FALSE)>D31,VLOOKUP(C31,Cylinders!A:D,3,FALSE)-D31,0)) -> 0
C32: Equinox D | D32: 0 | E32: 0 | F32: =IF(D32="","",IF(VLOOKUP(C32,Cylinders!A:D,3,FALSE)>D32,VLOOKUP(C32,Cylinders!A:D,3,FALSE)-D32,0)) -> 0
C33: Equinox ED | D33: 0 | E33: 0 | F33: =IF(D33="","",IF(VLOOKUP(C33,Cylinders!A:D,3,FALSE)>D33,VLOOKUP(C33,Cylinders!A:D,3,FALSE)-D33,0)) -> 0
C34: Equinox EX | D34: 0 | E34: 0 | F34: =IF(D34="","",IF(VLOOKUP(C34,Cylinders!A:D,3,FALSE)>D34,VLOOKUP(C34,Cylinders!A:D,3,FALSE)-D34,0)) -> 0
B35: Helium | C35: Helium F | D35: 0 | E35: 0 | F35: =IF(D35="","",IF(VLOOKUP(C35,Cylinders!A:D,3,FALSE)>D35,VLOOKUP(C35,Cylinders!A:D,3,FALSE)-D35,0)) -> 0
F36: =IF(D36="","",IF(VLOOKUP(C36,Cylinders!A:D,3,FALSE)>D36,VLOOKUP(C36,Cylinders!A:D,3,FALSE)-D36,0)) -> 
F37: =IF(D37="","",IF(VLOOKUP(C37,Cylinders!A:D,3,FALSE)>D37,VLOOKUP(C37,Cylinders!A:D,3,FALSE)-D37,0)) -> 
F38: =IF(D38="","",IF(VLOOKUP(C38,Cylinders!A:D,3,FALSE)>D38,VLOOKUP(C38,Cylinders!A:D,3,FALSE)-D38,0)) -> 
F39: =IF(D39="","",IF(VLOOKUP(C39,Cylinders!A:D,3,FALSE)>D39,VLOOKUP(C39,Cylinders!A:D,3,FALSE)-D39,0)) -> 
H43: w/c: | I43: ='Current Stock Oxygen vs Usage'!C1 -> (All) | O43: w/c: | P43: ='Current Stock Med Air vs Usage'!C1 -> (All)

Sheet LOG
A1: Date | B1: Week Commencing | C1: Action | D1: Item | E1: Location | F1: Quantity | G1: Cyl Cap (Ltr) | H1: Total Cap (Ltr) | I1: Stock Move | J1: Capacity Move (Ltr) | K1: Issue | L1: Current Stock | M1: Gas Type
A2: 2020-04-22 | B2: =IF(Table1[[#This Row],[Date]]="","",Table1[[#This Row],[Date]]-WEEKDAY(Table1[[#This Row],[Date]],2)+1) -> 2020-04-20 | C2: Opening Stock | D2: Oxy PD4C | E2: Stock | F2: 0 | G2: =IF(Table1[[#This Row],[Item]]="","",VLOOKUP(Table1[[#This Row],[Item]],Cylinders!A:B,2,FALSE)) -> 430 | H2: =IF(Table1[[#This Row],[Cyl Cap (Ltr)]]="","",Table1[[#This Row],[Cyl Cap (Ltr)]]*Table1[[#This Row],[Quantity]]) -> 0 | I2: =IF(IF(Table1[[#This Row],[Action]]="Issue",Table1[[#This Row],[Quantity]]*-1,Table1[[#This Row],[Quantity]])=0,IF(Table1[[#This Row],[Quantity]]<>"",0,""),IF(Table1[[#This Row],[Action]]="Issue",Table1[[#This Row],[Quantity]]*-1,Table1[[#This Row],[Quantity]])) -> 0 | J2: =IF(Table1[[#This Row],[Cyl Cap (Ltr)]]="","",Table1[[#This Row],[Cyl Cap (Ltr)]]*Table1[[#This Row],[Stock Move]]) -> 0 | K2: =IF(Table1[[#This Row],[Action]]="Issue",Table1[[#This Row],[Quantity]],0) -> 0 | L2: =SUMIF(D:D,Table1[[#This Row],[Item]],I:I) -> 0 | M2: =IF(Table1[[#This Row],[Item]]="","",VLOOKUP(Table1[[#This Row],[Item]],Cylinders!A:D,4,FALSE)) -> Oxygen
A3: 2020-04-22 | B3: =IF(Table1[[#This Row],[Date]]="","",Table1[[#This Row],[Date]]-WEEKDAY(Table1[[#This Row],[Date]],2)+1) -> 2020-04-20 | C3: Opening Stock | D3: Oxy CD | E3: Stock | F3: 0 | G3: =IF(Table1[[#This Row],[Item]]="","",VLOOKUP(Table1[[#This Row],[Item]],Cylinders!A:B,2,FALSE)) -> 460 | H3: =IF(Table1[[#This Row],[Cyl Cap (Ltr)]]="","",Table1[[#This Row],[Cyl Cap (Ltr)]]*Table1[[#This Row],[Quantity]]) -> 0 | I3: =IF(IF(Table1[[#This Row],[Action]]="Issue",Table1[[#This Row],[Quantity]]*-1,Table1[[#This Row],[Quantity]])=0,IF(Table1[[#This Row],[Quantity]]<>"",0,""),IF(Table1[[#This Row],[Action]]="Issue",Table1[[#This Row],[Quantity]]*-1,Table1[[#This Row],[Quantity]])) -> 0 | J3: =IF(Table1[[#This Row],[Cyl Cap (Ltr)]]="","",Table1[[#This Row],[Cyl Cap (Ltr)]]*Table1[[#This Row],[Stock Move]]) -> 0 | K3: =IF(Table1[[#This Row],[Action]]="Issue",Table1[[#This Row],[Quantity]],0) -> 0 | L3: =SUMIF(D:D,Table1[[#This Row],[Item]],I:I) -> 0 | M3: =IF(Table1[[#This Row],[Item]]="","",VLOOKUP(Table1[[#This Row],[Item]],Cylinders!A:D,4,FALSE)) -> Oxygen
A4: 2020-04-22 | B4: =IF(Table1[[#This Row],[Date]]="","",Table1[[#This Row],[Date]]-WEEKDAY(Table1[[#This Row],[Date]],2)+1) -> 2020-04-20 | C4: Opening Stock | D4: Oxy D | E4: Stock | F4: 0 | G4: =IF(Table1[[#This Row],[Item]]="","",VLOOKUP(Table1[[#This Row],[Item]],Cylinders!A:B,2,FALSE)) -> 340 | H4: =IF(Table1[[#This Row],[Cyl Cap (Ltr)]]="","",Table1[[#This Row],[Cyl Cap (Ltr)]]*Table1[[#This Row],[Quantity]]) -> 0 | I4: =IF(IF(Table1[[#This Row],[Action]]="Issue",Table1[[#This Row],[Quantity]]*-1,Table1[[#This Row],[Quantity]])=0,IF(Table1[[#This Row],[Quantity]]<>"",0,""),IF(Table1[[#This Row],[Action]]="Issue",Table1[[#This Row],[Quantity]]*-1,Table1[[#This Row],[Quantity]])) -> 0 | J4: =IF(Table1[[#This Row],[Cyl Cap (Ltr)]]="","",Table1[[#This Row],[Cyl Cap (Ltr)]]*Table1[[#This Row],[Stock Move]]) -> 0 | K4: =IF(Table1[[#This Row],[Action]]="Issue",Table1[[#This Row],[Quantity]],0) -> 0 | L4: =SUMIF(D:D,Table1[[#This Row],[Item]],I:I) -> 0 | M4: =IF(Table1[[#This Row],[Item]]="","",VLOOKUP(Table1[[#This Row],[Item]],Cylinders!A:D,4,FALSE)) -> Oxygen
A5: 2020-04-22 | B5: =IF(Table1[[#This Row],[Date]]="","",Table1[[#This Row],[Date]]-WEEKDAY(Table1[[#This Row],[Date]],2)+1) -> 2020-04-20 | C5: Opening Stock | D5: Oxy E | E5: Stock | F5: 0 | G5: =IF(Table1[[#This Row],[Item]]="","",VLOOKUP(Table1[[#This Row],[Item]],Cylinders!A:B,2,FALSE)) -> 680 | H5: =IF(Table1[[#This Row],[Cyl Cap (Ltr)]]="","",Table1[[#This Row],[Cyl Cap (Ltr)]]*Table1[[#This Row],[Quantity]]) -> 0 | I5: =IF(IF(Table1[[#This Row],[Action]]="Issue",Table1[[#This Row],[Quantity]]*-1,Table1[[#This Row],[Quantity]])=0,IF(Table1[[#This Row],[Quantity]]<>"",0,""),IF(Table1[[#This Row],[Action]]="Issue",Table1[[#This Row],[Quantity]]*-1,Table1[[#This Row],[Quantity]])) -> 0 | J5: =IF(Table1[[#This Row],[Cyl Cap (Ltr)]]="","",Table1[[#This Row],[Cyl Cap (Ltr)]]*Table1[[#This Row],[Stock Move]]) -> 0 | K5: =IF(Table1[[#This Row],[Action]]="Issue",Table1[[#This Row],[Quantity]],0) -> 0 | L5: =SUMIF(D:D,Table1[[#This Row],[Item]],I:I) -> 0 | M5: =IF(Table1[[#This Row],[Item]]="","",VLOOKUP(Table1[[#This Row],[Item]],Cylinders!A:D,4,FALSE)) -> Oxygen
A6: 2020-04-22 | B6: =IF(Table1[[#This Row],[Date]]="","",Table1[[#This Row],[Date]]-WEEKDAY(Table1[[#This Row],[Date]],2)+1) -> 2020-04-20 | C6: Opening Stock | D6: Oxy F4 | E6: Stock | F6: 0 | G6: =IF(Table1[[#This Row],[Item]]="","",VLOOKUP(Table1[[#This Row],[Item]],Cylinders!A:B,2,FALSE)) -> 1360 | H6: =IF(Table1[[#This Row],[Cyl Cap (Ltr)]]="","",Table1[[#This Row],[Cyl Cap (Ltr)]]*Table1[[#This Row],[Quantity]]) -> 0 | I6: =IF(IF(Table1[[#This Row],[Action]]="Issue",Table1[[#This Row],[Quantity]]*-1,Table1[[#This Row],[Quantity]])=0,IF(Table1[[#This Row],[Quantity]]<>"",0,""),IF(Table1[[#This Row],[Action]]="Issue",Table1[[#This Row],[Quantity]]*-1,Table1[[#This Row],[Quantity]])) -> 0 | J6: =IF(Table1[[#This Row],[Cyl Cap (Ltr)]]="","",Table1[[#This Row],[Cyl Cap (Ltr)]]*Table1[[#This Row],[Stock Move]]) -> 0 | K6: =IF(Table1[[#This Row],[Action]]="Issue",Table1[[#This Row],[Quantity]],0) -> 0 | L6: =SUMIF(D:D,Table1[[#This Row],[Item]],I:I) -> 0 | M6: =IF(Table1[[#This Row],[Item]]="","",VLOOKUP(Table1[[#This Row],[Item]],Cylinders!A:D,4,FALSE)) -> Oxygen
A7: 2020-04-22 | B7: =IF(Table1[[#This Row],[Date]]="","",Table1[[#This Row],[Date]]-WEEKDAY(Table1[[#This Row],[Date]],2)+1) -> 2020-04-20 | C7: Opening Stock | D7: Oxy F4C1T | E7: Stock | F7: 0 | G7: =IF(Table1[[#This Row],[Item]]="","",VLOOKUP(Table1[[#This Row],[Item]],Cylinders!A:B,2,FALSE)) -> 1360 | H7: =IF(Table1[[#This Row],[Cyl Cap (Ltr)]]="","",Table1[[#This Row],[Cyl Cap (Ltr)]]*Table1[[#This Row],[Quantity]]) -> 0 | I7: =IF(IF(Table1[[#This Row],[Action]]="Issue",Table1[[#This Row],[Quantity]]*-1,Table1[[#This Row],[Quantity]])=0,IF(Table1[[#This Row],[Quantity]]<>"",0,""),IF(Table1[[#This Row],[Action]]="Issue",Table1[[#This Row],[Quantity]]*-1,Table1[[#This Row],[Quantity]])) -> 0 | J7: =IF(Table1[[#This Row],[Cyl Cap (Ltr)]]="","",Table1[[#This Row],[Cyl Cap (Ltr)]]*Table1[[#This Row],[Stock Move]]) -> 0 | K7: =IF(Table1[[#This Row],[Action]]="Issue",Table1[[#This Row],[Quantity]],0) -> 0 | L7: =SUMIF(D:D,Table1[[#This Row],[Item]],I:I) -> 0 | M7: =IF(Table1[[#This Row],[Item]]="","",VLOOKUP(Table1[[#This Row],[Item]],Cylinders!A:D,4,FALSE)) -> Oxygen
A8: 2020-04-22 | B8: =IF(Table1[[#This Row],[Date]]="","",Table1[[#This Row],[Date]]-WEEKDAY(Table1[[#This Row],[Date]],2)+1) -> 2020-04-20 | C8: Opening Stock | D8: Oxy G | E8: Stock | F8: 0 | G8: =IF(Table1[[#This Row],[Item]]="","",VLOOKUP(Table1[[#This Row],[Item]],Cylinders!A:B,2,FALSE)) -> 3400 | H8: =IF(Table1[[#This Row],[Cyl Cap (Ltr)]]="","",Table1[[#This Row],[Cyl Cap (Ltr)]]*Table1[[#This Row],[Quantity]]) -> 0 | I8: =IF(IF(Table1[[#This Row],[Action]]="Issue",Table1[[#This Row],[Quantity]]*-1,Table1[[#This Row],[Quantity]])=0,IF(Table1[[#This Row],[Quantity]]<>"",0,""),IF(Table1[[#This Row],[Action]]="Issue",Table1[[#This Row],[Quantity]]*-1,Table1[[#This Row],[Quantity]])) -> 0 | J8: =IF(Table1[[#This Row],[Cyl Cap (Ltr)]]="","",Table1[[#This Row],[Cyl Cap (Ltr)]]*Table1[[#This Row],[Stock Move]]) -> 0 | K8: =IF(Table1[[#This Row],[Action]]="Issue",Table1[[#This Row],[Quantity]],0) -> 0 | L8: =SUMIF(D:D,Table1[[#This Row],[Item]],I:I) -> 0 | M8: =IF(Table1[[#This Row],[Item]]="","",VLOOKUP(Table1[[#This Row],[Item]],Cylinders!A:D,4,FALSE)) -> Oxygen
A9: 2020-04-22 | B9: =IF(Table1[[#This Row],[Date]]="","",Table1[[#This Row],[Date]]-WEEKDAY(Table1[[#This Row],[Date]],2)+1) -> 2020-04-20 | C9: Opening Stock | D9: Oxy HX | E9: Stock | F9: 0 | G9: =IF(Table1[[#This Row],[Item]]="","",VLOOKUP(Table1[[#This Row],[Item]],Cylinders!A:B,2,FALSE)) -> 2300 | H9: =IF(Table1[[#This Row],[Cyl Cap (Ltr)]]="","",Table1[[#This Row],[Cyl Cap (Ltr)]]*Table1[[#This Row],[Quantity]]) -> 0 | I9: =IF(IF(Table1[[#This Row],[Action]]="Issue",Table1[[#This Row],[Quantity]]*-1,Table1[[#This Row],[Quantity]])=0,IF(Table1[[#This Row],[Quantity]]<>"",0,""),IF(Table1[[#This Row],[Action]]="Issue",Table1[[#This Row],[Quantity]]*-1,Table1[[#This Row],[Quantity]])) -> 0 | J9: =IF(Table1[[#This Row],[Cyl Cap (Ltr)]]="","",Table1[[#This Row],[Cyl Cap (Ltr)]]*Table1[[#This Row],[Stock Move]]) -> 0 | K9: =IF(Table1[[#This Row],[Action]]="Issue",Table1[[#This Row],[Quantity]],0) -> 0 | L9: =SUMIF(D:D,Table1[[#This Row],[Item]],I:I) -> 0 | M9: =IF(Table1[[#This Row],[Item]]="","",VLOOKUP(Table1[[#This Row],[Item]],Cylinders!A:D,4,FALSE)) -> Oxygen
A10: 2020-04-22 | B10: =IF(Table1[[#This Row],[Date]]="","",Table1[[#This Row],[Date]]-WEEKDAY(Table1[[#This Row],[Date]],2)+1) -> 2020-04-20 | C10: Opening Stock | D10: Oxy J | E10: Stock | F10: 0 | G10: =IF(Table1[[#This Row],[Item]]="","",VLOOKUP(Table1[[#This Row],[Item]],Cylinders!A:B,2,FALSE)) -> 6800 | H10: =IF(Table1[[#This Row],[Cyl Cap (Ltr)]]="","",Table1[[#This Row],[Cyl Cap (Ltr)]]*Table1[[#This Row],[Quantity]]) -> 0 | I10: =IF(IF(Table1[[#This Row],[Action]]="Issue",Table1[[#This Row],[Quantity]]*-1,Table1[[#This Row],[Quantity]])=0,IF(Table1[[#This Row],[Quantity]]<>"",0,""),IF(Table1[[#This Row],[Action]]="Issue",Table1[[#This Row],[Quantity]]*-1,Table1[[#This Row],[Quantity]])) -> 0 | J10: =IF(Table1[[#This Row],[Cyl Cap (Ltr)]]="","",Table1[[#This Row],[Cyl Cap (Ltr)]]*Table1[[#This Row],[Stock Move]]) -> 0 | K10: =IF(Table1[[#This Row],[Action]]="Issue",Table1[[#This Row],[Quantity]],0) -> 0 | L10: =SUMIF(D:D,Table1[[#This Row],[Item]],I:I) -> 0 | M10: =IF(Table1[[#This Row],[Item]]="","",VLOOKUP(Table1[[#This Row],[Item]],Cylinders!A:D,4,FALSE)) -> Oxygen
A11: 2020-04-22 | B11: =IF(Table1[[#This Row],[Date]]="","",Table1[[#This Row],[Date]]-WEEKDAY(Table1[[#This Row],[Date]],2)+1) -> 2020-04-20 | C11: Opening Stock | D11: Oxy SJ | E11: Stock | F11: 0 | G11: =IF(Table1[[#This Row],[Item]]="","",VLOOKUP(Table1[[#This Row],[Item]],Cylinders!A:B,2,FALSE)) -> 7300 | H11: =IF(Table1[[#This Row],[Cyl Cap (Ltr)]]="","",Table1[[#This Row],[Cyl Cap (Ltr)]]*Table1[[#This Row],[Quantity]]) -> 0 | I11: =IF(IF(Table1[[#This Row],[Action]]="Issue",Table1[[#This Row],[Quantity]]*-1,Table1[[#This Row],[Quantity]])=0,IF(Table1[[#This Row],[Quantity]]<>"",0,""),IF(Table1[[#This Row],[Action]]="Issue",Table1[[#This Row],[Quantity]]*-1,Table1[[#This Row],[Quantity]])) -> 0 | J11: =IF(Table1[[#This Row],[Cyl Cap (Ltr)]]="","",Table1[[#This Row],[Cyl Cap (Ltr)]]*Table1[[#This Row],[Stock Move]]) -> 0 | K11: =IF(Table1[[#This Row],[Action]]="Issue",Table1[[#This Row],[Quantity]],0) -> 0 | L11: =SUMIF(D:D,Table1[[#This Row],[Item]],I:I) -> 0 | M11: =IF(Table1[[#This Row],[Item]]="","",VLOOKUP(Table1[[#This Row],[Item]],Cylinders!A:D,4,FALSE)) -> Oxygen
A12: 2020-04-22 | B12: =IF(Table1[[#This Row],[Date]]="","",Table1[[#This Row],[Date]]-WEEKDAY(Table1[[#This Row],[Date]],2)+1) -> 2020-04-20 | C12: Opening Stock | D12: Air E | E12: Stock | F12: 0 | G12: =IF(Table1[[#This Row],[Item]]="","",VLOOKUP(Table1[[#This Row],[Item]],Cylinders!A:B,2,FALSE)) -> 640 | H12: =IF(Table1[[#This Row],[Cyl Cap (Ltr)]]="","",Table1[[#This Row],[Cyl Cap (Ltr)]]*Table1[[#This Row],[Quantity]]) -> 0 | I12: =IF(IF(Table1[[#This Row],[Action]]="Issue",Table1[[#This Row],[Quantity]]*-1,Table1[[#This Row],[Quantity]])=0,IF(Table1[[#This Row],[Quantity]]<>"",0,""),IF(Table1[[#This Row],[Action]]="Issue",Table1[[#This Row],[Quantity]]*-1,Table1[[#This Row],[Quantity]])) -> 0 | J12: =IF(Table1[[#This Row],[Cyl Cap (Ltr)]]="","",Table1[[#This Row],[Cyl Cap (Ltr)]]*Table1[[#This Row],[Stock Move]]) -> 0 | K12: =IF(Table1[[#This Row],[Action]]="Issue",Table1[[#This Row],[Quantity]],0) -> 0 | L12: =SUMIF(D:D,Table1[[#This Row],[Item]],I:I) -> 0 | M12: =IF(Table1[[#This Row],[Item]]="","",VLOOKUP(Table1[[#This Row],[Item]],Cylinders!A:D,4,FALSE)) -> Medical Air
A13: 2020-04-22 | B13: =IF(Table1[[#This Row],[Date]]="","",Table1[[#This Row],[Date]]-WEEKDAY(Table1[[#This Row],[Date]],2)+1) -> 2020-04-20 | C13: Opening Stock | D13: Air F | E13: Stock | F13: 0 | G13: =IF(Table1[[#This Row],[Item]]="","",VLOOKUP(Table1[[#This Row],[Item]],Cylinders!A:B,2,FALSE)) -> 1280 | H13: =IF(Table1[[#This Row],[Cyl Cap (Ltr)]]="","",Table1[[#This Row],[Cyl Cap (Ltr)]]*Table1[[#This Row],[Quantity]]) -> 0 | I13: =IF(IF(Table1[[#This Row],[Action]]="Issue",Table1[[#This Row],[Quantity]]*-1,Table1[[#This Row],[Quantity]])=0,IF(Table1[[#This Row],[Quantity]]<>"",0,""),IF(Table1[[#This Row],[Action]]="Issue",Table1[[#This Row],[Quantity]]*-1,Table1[[#This Row],[Quantity]])) -> 0 | J13: =IF(Table1[[#This Row],[Cyl Cap (Ltr)]]="","",Table1[[#This Row],[Cyl Cap (Ltr)]]*Table1[[#This Row],[Stock Move]]) -> 0 | K13: =IF(Table1[[#This Row],[Action]]="Issue",Table1[[#This Row],[Quantity]],0) -> 0 | L13: =SUMIF(D:D,Table1[[#This Row],[Item]],I:I) -> 0 | M13: =IF(Table1[[#This Row],[Item]]="","",VLOOKUP(Table1[[#This Row],[Item]],Cylinders!A:D,4,FALSE)) -> Medical Air
A14: 2020-04-22 | B14: =IF(Table1[[#This Row],[Date]]="","",Table1[[#This Row],[Date]]-WEEKDAY(Table1[[#This Row],[Date]],2)+1) -> 2020-04-20 | C14: Opening Stock | D14: Air G | E14: Stock | F14: 0 | G14: =IF(Table1[[#This Row],[Item]]="","",VLOOKUP(Table1[[#This Row],[Item]],Cylinders!A:B,2,FALSE)) -> 3200 | H14: =IF(Table1[[#This Row],[Cyl Cap (Ltr)]]="","",Table1[[#This Row],[Cyl Cap (Ltr)]]*Table1[[#This Row],[Quantity]]) -> 0 | I14: =IF(IF(Table1[[#This Row],[Action]]="Issue",Table1[[#This Row],[Quantity]]*-1,Table1[[#This Row],[Quantity]])=0,IF(Table1[[#This Row],[Quantity]]<>"",0,""),IF(Table1[[#This Row],[Action]]="Issue",Table1[[#This Row],[Quantity]]*-1,Table1[[#This Row],[Quantity]])) -> 0 | J14: =IF(Table1[[#This Row],[Cyl Cap (Ltr)]]="","",Table1[[#This Row],[Cyl Cap (Ltr)]]*Table1[[#This Row],[Stock Move]]) -> 0 | K14: =IF(Table1[[#This Row],[Action]]="Issue",Table1[[#This Row],[Quantity]],0) -> 0 | L14: =SUMIF(D:D,Table1[[#This Row],[Item]],I:I) -> 0 | M14: =IF(Table1[[#This Row],[Item]]="","",VLOOKUP(Table1[[#This Row],[Item]],Cylinders!A:D,4,FALSE)) -> Medical Air
A15: 2020-04-22 | B15: =IF(Table1[[#This Row],[Date]]="","",Table1[[#This Row],[Date]]-WEEKDAY(Table1[[#This Row],[Date]],2)+1) -> 2020-04-20 | C15: Opening Stock | D15: Air J | E15: Stock | F15: 0 | G15: =IF(Table1[[#This Row],[Item]]="","",VLOOKUP(Table1[[#This Row],[Item]],Cylinders!A:B,2,FALSE)) -> 6400 | H15: =IF(Table1[[#This Row],[Cyl Cap (Ltr)]]="","",Table1[[#This Row],[Cyl Cap (Ltr)]]*Table1[[#This Row],[Quantity]]) -> 0 | I15: =IF(IF(Table1[[#This Row],[Action]]="Issue",Table1[[#This Row],[Quantity]]*-1,Table1[[#This Row],[Quantity]])=0,IF(Table1[[#This Row],[Quantity]]<>"",0,""),IF(Table1[[#This Row],[Action]]="Issue",Table1[[#This Row],[Quantity]]*-1,Table1[[#This Row],[Quantity]])) -> 0 | J15: =IF(Table1[[#This Row],[Cyl Cap (Ltr)]]="","",Table1[[#This Row],[Cyl Cap (Ltr)]]*Table1[[#This Row],[Stock Move]]) -> 0 | K15: =IF(Table1[[#This Row],[Action]]="Issue",Table1[[#This Row],[Quantity]],0) -> 0 | L15: =SUMIF(D:D,Table1[[#This Row],[Item]],I:I) -> 0 | M15: =IF(Table1[[#This Row],[Item]]="","",VLOOKUP(Table1[[#This Row],[Item]],Cylinders!A:D,4,FALSE)) -> Medical Air
A16: 2020-04-22 | B16: =IF(Table1[[#This Row],[Date]]="","",Table1[[#This Row],[Date]]-WEEKDAY(Table1[[#This Row],[Date]],2)+1) -> 2020-04-20 | C16: Opening Stock | D16: Air SJ | E16: Stock | F16: 0 | G16: =IF(Table1[[#This Row],[Item]]="","",VLOOKUP(Table1[[#This Row],[Item]],Cylinders!A:B,2,FALSE)) -> 6800 | H16: =IF(Table1[[#This Row],[Cyl Cap (Ltr)]]="","",Table1[[#This Row],[Cyl Cap (Ltr)]]*Table1[[#This Row],[Quantity]]) -> 0 | I16: =IF(IF(Table1[[#This Row],[Action]]="Issue",Table1[[#This Row],[Quantity]]*-1,Table1[[#This Row],[Quantity]])=0,IF(Table1[[#This Row],[Quantity]]<>"",0,""),IF(Table1[[#This Row],[Action]]="Issue",Table1[[#This Row],[Quantity]]*-1,Table1[[#This Row],[Quantity]])) -> 0 | J16: =IF(Table1[[#This Row],[Cyl Cap (Ltr)]]="","",Table1[[#This Row],[Cyl Cap (Ltr)]]*Table1[[#This Row],[Stock Move]]) -> 0 | K16: =IF(Table1[[#This Row],[Action]]="Issue",Table1[[#This Row],[Quantity]],0) -> 0 | L16: =SUMIF(D:D,Table1[[#This Row],[Item]],I:I) -> 0 | M16: =IF(Table1[[#This Row],[Item]]="","",VLOOKUP(Table1[[#This Row],[Item]],Cylinders!A:D,4,FALSE)) -> Medical Air
A17: 2020-04-22 | B17: =IF(Table1[[#This Row],[Date]]="","",Table1[[#This Row],[Date]]-WEEKDAY(Table1[[#This Row],[Date]],2)+1) -> 2020-04-20 | C17: Opening Stock | D17: CO2 C | E17: Stock | F17: 0 | G17: =IF(Table1[[#This Row],[Item]]="","",VLOOKUP(Table1[[#This Row],[Item]],Cylinders!A:B,2,FALSE)) -> 450 | H17: =IF(Table1[[#This Row],[Cyl Cap (Ltr)]]="","",Table1[[#This Row],[Cyl Cap (Ltr)]]*Table1[[#This Row],[Quantity]]) -> 0 | I17: =IF(IF(Table1[[#This Row],[Action]]="Issue",Table1[[#This Row],[Quantity]]*-1,Table1[[#This Row],[Quantity]])=0,IF(Table1[[#This Row],[Quantity]]<>"",0,""),IF(Table1[[#This Row],[Action]]="Issue",Table1[[#This Row],[Quantity]]*-1,Table1[[#This Row],[Quantity]])) -> 0 | J17: =IF(Table1[[#This Row],[Cyl Cap (Ltr)]]="","",Table1[[#This Row],[Cyl Cap (Ltr)]]*Table1[[#This Row],[Stock Move]]) -> 0 | K17: =IF(Table1[[#This Row],[Action]]="Issue",Table1[[#This Row],[Quantity]],0) -> 0 | L17: =SUMIF(D:D,Table1[[#This Row],[Item]],I:I) -> 0 | M17: =IF(Table1[[#This Row],[Item]]="","",VLOOKUP(Table1[[#This Row],[Item]],Cylinders!A:D,4,FALSE)) -> CO2
A18: 2020-04-22 | B18: =IF(Table1[[#This Row],[Date]]="","",Table1[[#This Row],[Date]]-WEEKDAY(Table1[[#This Row],[Date]],2)+1) -> 2020-04-20 | C18: Opening Stock | D18: CO2 E | E18: Stock | F18: 0 | G18: =IF(Table1[[#This Row],[Item]]="","",VLOOKUP(Table1[[#This Row],[Item]],Cylinders!A:B,2,FALSE)) -> 1800 | H18: =IF(Table1[[#This Row],[Cyl Cap (Ltr)]]="","",Table1[[#This Row],[Cyl Cap (Ltr)]]*Table1[[#This Row],[Quantity]]) -> 0 | I18: =IF(IF(Table1[[#This Row],[Action]]="Issue",Table1[[#This Row],[Quantity]]*-1,Table1[[#This Row],[Quantity]])=0,IF(Table1[[#This Row],[Quantity]]<>"",0,""),IF(Table1[[#This Row],[Action]]="Issue",Table1[[#This Row],[Quantity]]*-1,Table1[[#This Row],[Quantity]])) -> 0 | J18: =IF(Table1[[#This Row],[Cyl Cap (Ltr)]]="","",Table1[[#This Row],[Cyl Cap (Ltr)]]*Table1[[#This Row],[Stock Move]]) -> 0 | K18: =IF(Table1[[#This Row],[Action]]="Issue",Table1[[#This Row],[Quantity]],0) -> 0 | L18: =SUMIF(D:D,Table1[[#This Row],[Item]],I:I) -> 0 | M18: =IF(Table1[[#This Row],[Item]]="","",VLOOKUP(Table1[[#This Row],[Item]],Cylinders!A:D,4,FALSE)) -> CO2
A19: 2020-04-22 | B19: =IF(Table1[[#This Row],[Date]]="","",Table1[[#This Row],[Date]]-WEEKDAY(Table1[[#This Row],[Date]],2)+1) -> 2020-04-20 | C19: Opening Stock | D19: CO2 VF | E19: Stock | F19: 0 | G19: =IF(Table1[[#This Row],[Item]]="","",VLOOKUP(Table1[[#This Row],[Item]],Cylinders!A:B,2,FALSE)) -> 3600 | H19: =IF(Table1[[#This Row],[Cyl Cap (Ltr)]]="","",Table1[[#This Row],[Cyl Cap (Ltr)]]*Table1[[#This Row],[Quantity]]) -> 0 | I19: =IF(IF(Table1[[#This Row],[Action]]="Issue",Table1[[#This Row],[Quantity]]*-1,Table1[[#This Row],[Quantity]])=0,IF(Table1[[#This Row],[Quantity]]<>"",0,""),IF(Table1[[#This Row],[Action]]="Issue",Table1[[#This Row],[Quantity]]*-1,Table1[[#This Row],[Quantity]])) -> 0 | J19: =IF(Table1[[#This Row],[Cyl Cap (Ltr)]]="","",Table1[[#This Row],[Cyl Cap (Ltr)]]*Table1[[#This Row],[Stock Move]]) -> 0 | K19: =IF(Table1[[#This Row],[Action]]="Issue",Table1[[#This Row],[Quantity]],0) -> 0 | L19: =SUMIF(D:D,Table1[[#This Row],[Item]],I:I) -> 0 | M19: =IF(Table1[[#This Row],[Item]]="","",VLOOKUP(Table1[[#This Row],[Item]],Cylinders!A:D,4,FALSE)) -> CO2
A20: 2020-04-22 | B20: =IF(Table1[[#This Row],[Date]]="","",Table1[[#This Row],[Date]]-WEEKDAY(Table1[[#This Row],[Date]],2)+1) -> 2020-04-20 | C20: Opening Stock | D20: CO2 VK | E20: Stock | F20: 0 | G20: =IF(Table1[[#This Row],[Item]]="","",VLOOKUP(Table1[[#This Row],[Item]],Cylinders!A:B,2,FALSE)) -> 3600 | H20: =IF(Table1[[#This Row],[Cyl Cap (Ltr)]]="","",Table1[[#This Row],[Cyl Cap (Ltr)]]*Table1[[#This Row],[Quantity]]) -> 0 | I20: =IF(IF(Table1[[#This Row],[Action]]="Issue",Table1[[#This Row],[Quantity]]*-1,Table1[[#This Row],[Quantity]])=0,IF(Table1[[#This Row],[Quantity]]<>"",0,""),IF(Table1[[#This Row],[Action]]="Issue",Table1[[#This Row],[Quantity]]*-1,Table1[[#This Row],[Quantity]])) -> 0 | J20: =IF(Table1[[#This Row],[Cyl Cap (Ltr)]]="","",Table1[[#This Row],[Cyl Cap (Ltr)]]*Table1[[#This Row],[Stock Move]]) -> 0 | K20: =IF(Table1[[#This Row],[Action]]="Issue",Table1[[#This Row],[Quantity]],0) -> 0 | L20: =SUMIF(D:D,Table1[[#This Row],[Item]],I:I) -> 0 | M20: =IF(Table1[[#This Row],[Item]]="","",VLOOKUP(Table1[[#This Row],[Item]],Cylinders!A:D,4,FALSE)) -> CO2
A21: 2020-04-22 | B21: =IF(Table1[[#This Row],[Date]]="","",Table1[[#This Row],[Date]]-WEEKDAY(Table1[[#This Row],[Date]],2)+1) -> 2020-04-20 | C21: Opening Stock | D21: Equinox AD | E21: Stock | F21: 0 | G21: =IF(Table1[[#This Row],[Item]]="","",VLOOKUP(Table1[[#This Row],[Item]],Cylinders!A:B,2,FALSE)) -> 420 | H21: =IF(Table1[[#This Row],[Cyl Cap (Ltr)]]="","",Table1[[#This Row],[Cyl Cap (Ltr)]]*Table1[[#This Row],[Quantity]]) -> 0 | I21: =IF(IF(Table1[[#This Row],[Action]]="Issue",Table1[[#This Row],[Quantity]]*-1,Table1[[#This Row],[Quantity]])=0,IF(Table1[[#This Row],[Quantity]]<>"",0,""),IF(Table1[[#This Row],[Action]]="Issue",Table1[[#This Row],[Quantity]]*-1,Table1[[#This Row],[Quantity]])) -> 0 | J21: =IF(Table1[[#This Row],[Cyl Cap (Ltr)]]="","",Table1[[#This Row],[Cyl Cap (Ltr)]]*Table1[[#This Row],[Stock Move]]) -> 0 | K21: =IF(Table1[[#This Row],[Action]]="Issue",Table1[[#This Row],[Quantity]],0) -> 0 | L21: =SUMIF(D:D,Table1[[#This Row],[Item]],I:I) -> 0 | M21: =IF(Table1[[#This Row],[Item]]="","",VLOOKUP(Table1[[#This Row],[Item]],Cylinders!A:D,4,FALSE)) -> Entonox
A22: 2020-04-22 | B22: =IF(Table1[[#This Row],[Date]]="","",Table1[[#This Row],[Date]]-WEEKDAY(Table1[[#This Row],[Date]],2)+1) -> 2020-04-20 | C22: Opening Stock | D22: Equinox D | E22: Stock | F22: 0 | G22: =IF(Table1[[#This Row],[Item]]="","",VLOOKUP(Table1[[#This Row],[Item]],Cylinders!A:B,2,FALSE)) -> 500 | H22: =IF(Table1[[#This Row],[Cyl Cap (Ltr)]]="","",Table1[[#This Row],[Cyl Cap (Ltr)]]*Table1[[#This Row],[Quantity]]) -> 0 | I22: =IF(IF(Table1[[#This Row],[Action]]="Issue",Table1[[#This Row],[Quantity]]*-1,Table1[[#This Row],[Quantity]])=0,IF(Table1[[#This Row],[Quantity]]<>"",0,""),IF(Table1[[#This Row],[Action]]="Issue",Table1[[#This Row],[Quantity]]*-1,Table1[[#This Row],[Quantity]])) -> 0 | J22: =IF(Table1[[#This Row],[Cyl Cap (Ltr)]]="","",Table1[[#This Row],[Cyl Cap (Ltr)]]*Table1[[#This Row],[Stock Move]]) -> 0 | K22: =IF(Table1[[#This Row],[Action]]="Issue",Table1[[#This Row],[Quantity]],0) -> 0 | L22: =SUMIF(D:D,Table1[[#This Row],[Item]],I:I) -> 0 | M22: =IF(Table1[[#This Row],[Item]]="","",VLOOKUP(Table1[[#This Row],[Item]],Cylinders!A:D,4,FALSE)) -> Entonox
A23: 2020-04-22 | B23: =IF(Table1[[#This Row],[Date]]="","",Table1[[#This Row],[Date]]-WEEKDAY(Table1[[#This Row],[Date]],2)+1) -> 2020-04-20 | C23: Opening Stock | D23: Equinox ED | E23: Stock | F23: 0 | G23: =IF(Table1[[#This Row],[Item]]="","",VLOOKUP(Table1[[#This Row],[Item]],Cylinders!A:B,2,FALSE)) -> 700 | H23: =IF(Table1[[#This Row],[Cyl Cap (Ltr)]]="","",Table1[[#This Row],[Cyl Cap (Ltr)]]*Table1[[#This Row],[Quantity]]) -> 0 | I23: =IF(IF(Table1[[#This Row],[Action]]="Issue",Table1[[#This Row],[Quantity]]*-1,Table1[[#This Row],[Quantity]])=0,IF(Table1[[#This Row],[Quantity]]<>"",0,""),IF(Table1[[#This Row],[Action]]="Issue",Table1[[#This Row],[Quantity]]*-1,Table1[[#This Row],[Quantity]])) -> 0 | J23: =IF(Table1[[#This Row],[Cyl Cap (Ltr)]]="","",Table1[[#This Row],[Cyl Cap (Ltr)]]*Table1[[#This Row],[Stock Move]]) -> 0 | K23: =IF(Table1[[#This Row],[Action]]="Issue",Table1[[#This Row],[Quantity]],0) -> 0 | L23: =SUMIF(D:D,Table1[[#This Row],[Item]],I:I) -> 0 | M23: =IF(Table1[[#This Row],[Item]]="","",VLOOKUP(Table1[[#This Row],[Item]],Cylinders!A:D,4,FALSE)) -> Entonox
A24: 2020-04-22 | B24: =IF(Table1[[#This Row],[Date]]="","",Table1[[#This Row],[Date]]-WEEKDAY(Table1[[#This Row],[Date]],2)+1) -> 2020-04-20 | C24: Opening Stock | D24: Equinox EX | E24: Stock | F24: 0 | G24: =IF(Table1[[#This Row],[Item]]="","",VLOOKUP(Table1[[#This Row],[Item]],Cylinders!A:B,2,FALSE)) -> 3500 | H24: =IF(Table1[[#This Row],[Cyl Cap (Ltr)]]="","",Table1[[#This Row],[Cyl Cap (Ltr)]]*Table1[[#This Row],[Quantity]]) -> 0 | I24: =IF(IF(Table1[[#This Row],[Action]]="Issue",Table1[[#This Row],[Quantity]]*-1,Table1[[#This Row],[Quantity]])=0,IF(Table1[[#This Row],[Quantity]]<>"",0,""),IF(Table1[[#This Row],[Action]]="Issue",Table1[[#This Row],[Quantity]]*-1,Table1[[#This Row],[Quantity]])) -> 0 | J24: =IF(Table1[[#This Row],[Cyl Cap (Ltr)]]="","",Table1[[#This Row],[Cyl Cap (Ltr)]]*Table1[[#This Row],[Stock Move]]) -> 0 | K24: =IF(Table1[[#This Row],[Action]]="Issue",Table1[[#This Row],[Quantity]],0) -> 0 | L24: =SUMIF(D:D,Table1[[#This Row],[Item]],I:I) -> 0 | M24: =IF(Table1[[#This Row],[Item]]="","",VLOOKUP(Table1[[#This Row],[Item]],Cylinders!A:D,4,FALSE)) -> Entonox
A25: 2020-04-22 | B25: =IF(Table1[[#This Row],[Date]]="","",Table1[[#This Row],[Date]]-WEEKDAY(Table1[[#This Row],[Date]],2)+1) -> 2020-04-20 | C25: Opening Stock | D25: Equinox F | E25: Stock | F25: 0 | G25: =IF(Table1[[#This Row],[Item]]="","",VLOOKUP(Table1[[#This Row],[Item]],Cylinders!A:B,2,FALSE)) -> 2000 | H25: =IF(Table1[[#This Row],[Cyl Cap (Ltr)]]="","",Table1[[#This Row],[Cyl Cap (Ltr)]]*Table1[[#This Row],[Quantity]]) -> 0 | I25: =IF(IF(Table1[[#This Row],[Action]]="Issue",Table1[[#This Row],[Quantity]]*-1,Table1[[#This Row],[Quantity]])=0,IF(Table1[[#This Row],[Quantity]]<>"",0,""),IF(Table1[[#This Row],[Action]]="Issue",Table1[[#This Row],[Quantity]]*-1,Table1[[#This Row],[Quantity]])) -> 0 | J25: =IF(Table1[[#This Row],[Cyl Cap (Ltr)]]="","",Table1[[#This Row],[Cyl Cap (Ltr)]]*Table1[[#This Row],[Stock Move]]) -> 0 | K25: =IF(Table1[[#This Row],[Action]]="Issue",Table1[[#This Row],[Quantity]],0) -> 0 | L25: =SUMIF(D:D,Table1[[#This Row],[Item]],I:I) -> 0 | M25: =IF(Table1[[#This Row],[Item]]="","",VLOOKUP(Table1[[#This Row],[Item]],Cylinders!A:D,4,FALSE)) -> Entonox
A26: 2020-04-22 | B26: =IF(Table1[[#This Row],[Date]]="","",Table1[[#This Row],[Date]]-WEEKDAY(Table1[[#This Row],[Date]],2)+1) -> 2020-04-20 | C26: Opening Stock | D26: Equinox G | E26: Stock | F26: 0 | G26: =IF(Table1[[#This Row],[Item]]="","",VLOOKUP(Table1[[#This Row],[Item]],Cylinders!A:B,2,FALSE)) -> 5000 | H26: =IF(Table1[[#This Row],[Cyl Cap (Ltr)]]="","",Table1[[#This Row],[Cyl Cap (Ltr)]]*Table1[[#This Row],[Quantity]]) -> 0 | I26: =IF(IF(Table1[[#This Row],[Action]]="Issue",Table1[[#This Row],[Quantity]]*-1,Table1[[#This Row],[Quantity]])=0,IF(Table1[[#This Row],[Quantity]]<>"",0,""),IF(Table1[[#This Row],[Action]]="Issue",Table1[[#This Row],[Quantity]]*-1,Table1[[#This Row],[Quantity]])) -> 0 | J26: =IF(Table1[[#This Row],[Cyl Cap (Ltr)]]="","",Table1[[#This Row],[Cyl Cap (Ltr)]]*Table1[[#This Row],[Stock Move]]) -> 0 | K26: =IF(Table1[[#This Row],[Action]]="Issue",Table1[[#This Row],[Quantity]],0) -> 0 | L26: =SUMIF(D:D,Table1[[#This Row],[Item]],I:I) -> 0 | M26: =IF(Table1[[#This Row],[Item]]="","",VLOOKUP(Table1[[#This Row],[Item]],Cylinders!A:D,4,FALSE)) -> Entonox
A27: 2020-04-22 | B27: =IF(Table1[[#This Row],[Date]]="","",Table1[[#This Row],[Date]]-WEEKDAY(Table1[[#This Row],[Date]],2)+1) -> 2020-04-20 | C27: Opening Stock | D27: Nitrous E | E27: Stock | F27: 0 | G27: =IF(Table1[[#This Row],[Item]]="","",VLOOKUP(Table1[[#This Row],[Item]],Cylinders!A:B,2,FALSE)) -> 1800 | H27: =IF(Table1[[#This Row],[Cyl Cap (Ltr)]]="","",Table1[[#This Row],[Cyl Cap (Ltr)]]*Table1[[#This Row],[Quantity]]) -> 0 | I27: =IF(IF(Table1[[#This Row],[Action]]="Issue",Table1[[#This Row],[Quantity]]*-1,Table1[[#This Row],[Quantity]])=0,IF(Table1[[#This Row],[Quantity]]<>"",0,""),IF(Table1[[#This Row],[Action]]="Issue",Table1[[#This Row],[Quantity]]*-1,Table1[[#This Row],[Quantity]])) -> 0 | J27: =IF(Table1[[#This Row],[Cyl Cap (Ltr)]]="","",Table1[[#This Row],[Cyl Cap (Ltr)]]*Table1[[#This Row],[Stock Move]]) -> 0 | K27: =IF(Table1[[#This Row],[Action]]="Issue",Table1[[#This Row],[Quantity]],0) -> 0 | L27: =SUMIF(D:D,Table1[[#This Row],[Item]],I:I) -> 0 | M27: =IF(Table1[[#This Row],[Item]]="","",VLOOKUP(Table1[[#This Row],[Item]],Cylinders!A:D,4,FALSE)) -> Nitrous Oxide
A28: 2020-04-22 | B28: =IF(Table1[[#This Row],[Date]]="","",Table1[[#This Row],[Date]]-WEEKDAY(Table1[[#This Row],[Date]],2)+1) -> 2020-04-20 | C28: Opening Stock | D28: Nitrous F | E28: Stock | F28: 0 | G28: =IF(Table1[[#This Row],[Item]]="","",VLOOKUP(Table1[[#This Row],[Item]],Cylinders!A:B,2,FALSE)) -> 3600 | H28: =IF(Table1[[#This Row],[Cyl Cap (Ltr)]]="","",Table1[[#This Row],[Cyl Cap (Ltr)]]*Table1[[#This Row],[Quantity]]) -> 0 | I28: =IF(IF(Table1[[#This Row],[Action]]="Issue",Table1[[#This Row],[Quantity]]*-1,Table1[[#This Row],[Quantity]])=0,IF(Table1[[#This Row],[Quantity]]<>"",0,""),IF(Table1[[#This Row],[Action]]="Issue",Table1[[#This Row],[Quantity]]*-1,Table1[[#This Row],[Quantity]])) -> 0 | J28: =IF(Table1[[#This Row],[Cyl Cap (Ltr)]]="","",Table1[[#This Row],[Cyl Cap (Ltr)]]*Table1[[#This Row],[Stock Move]]) -> 0 | K28: =IF(Table1[[#This Row],[Action]]="Issue",Table1[[#This Row],[Quantity]],0) -> 0 | L28: =SUMIF(D:D,Table1[[#This Row],[Item]],I:I) -> 0 | M28: =IF(Table1[[#This Row],[Item]]="","",VLOOKUP(Table1[[#This Row],[Item]],Cylinders!A:D,4,FALSE)) -> Nitrous Oxide
A29: 2020-04-22 | B29: =IF(Table1[[#This Row],[Date]]="","",Table1[[#This Row],[Date]]-WEEKDAY(Table1[[#This Row],[Date]],2)+1) -> 2020-04-20 | C29: Opening Stock | D29: Nitrous G | E29: Stock | F29: 0 | G29: =IF(Table1[[#This Row],[Item]]="","",VLOOKUP(Table1[[#This Row],[Item]],Cylinders!A:B,2,FALSE)) -> 9000 | H29: =IF(Table1[[#This Row],[Cyl Cap (Ltr)]]="","",Table1[[#This Row],[Cyl Cap (Ltr)]]*Table1[[#This Row],[Quantity]]) -> 0 | I29: =IF(IF(Table1[[#This Row],[Action]]="Issue",Table1[[#This Row],[Quantity]]*-1,Table1[[#This Row],[Quantity]])=0,IF(Table1[[#This Row],[Quantity]]<>"",0,""),IF(Table1[[#This Row],[Action]]="Issue",Table1[[#This Row],[Quantity]]*-1,Table1[[#This Row],[Quantity]])) -> 0 | J29: =IF(Table1[[#This Row],[Cyl Cap (Ltr)]]="","",Table1[[#This Row],[Cyl Cap (Ltr)]]*Table1[[#This Row],[Stock Move]]) -> 0 | K29: =IF(Table1[[#This Row],[Action]]="Issue",Table1[[#This Row],[Quantity]],0) -> 0 | L29: =SUMIF(D:D,Table1[[#This Row],[Item]],I:I) -> 0 | M29: =IF(Table1[[#This Row],[Item]]="","",VLOOKUP(Table1[[#This Row],[Item]],Cylinders!A:D,4,FALSE)) -> Nitrous Oxide
A30: 2020-04-22 | B30: =IF(Table1[[#This Row],[Date]]="","",Table1[[#This Row],[Date]]-WEEKDAY(Table1[[#This Row],[Date]],2)+1) -> 2020-04-20 | C30: Opening Stock | D30: Helium F | E30: Stock | F30: 0 | G30: =IF(Table1[[#This Row],[Item]]="","",VLOOKUP(Table1[[#This Row],[Item]],Cylinders!A:B,2,FALSE)) -> 1200 | H30: =IF(Table1[[#This Row],[Cyl Cap (Ltr)]]="","",Table1[[#This Row],[Cyl Cap (Ltr)]]*Table1[[#This Row],[Quantity]]) -> 0 | I30: =IF(IF(Table1[[#This Row],[Action]]="Issue",Table1[[#This Row],[Quantity]]*-1,Table1[[#This Row],[Quantity]])=0,IF(Table1[[#This Row],[Quantity]]<>"",0,""),IF(Table1[[#This Row],[Action]]="Issue",Table1[[#This Row],[Quantity]]*-1,Table1[[#This Row],[Quantity]])) -> 0 | J30: =IF(Table1[[#This Row],[Cyl Cap (Ltr)]]="","",Table1[[#This Row],[Cyl Cap (Ltr)]]*Table1[[#This Row],[Stock Move]]) -> 0 | K30: =IF(Table1[[#This Row],[Action]]="Issue",Table1[[#This Row],[Quantity]],0) -> 0 | L30: =SUMIF(D:D,Table1[[#This Row],[Item]],I:I) -> 0 | M30: =IF(Table1[[#This Row],[Item]]="","",VLOOKUP(Table1[[#This Row],[Item]],Cylinders!A:D,4,FALSE)) -> Helium
A31: 2020-04-22 | B31: =IF(Table1[[#This Row],[Date]]="","",Table1[[#This Row],[Date]]-WEEKDAY(Table1[[#This Row],[Date]],2)+1) -> 2020-04-20 | C31: Opening Stock | D31: Oxy D | E31: Stock | F31: 0 | G31: =IF(Table1[[#This Row],[Item]]="","",VLOOKUP(Table1[[#This Row],[Item]],Cylinders!A:B,2,FALSE)) -> 340 | H31: =IF(Table1[[#This Row],[Cyl Cap (Ltr)]]="","",Table1[[#This Row],[Cyl Cap (Ltr)]]*Table1[[#This Row],[Quantity]]) -> 0 | I31: =IF(IF(Table1[[#This Row],[Action]]="Issue",Table1[[#This Row],[Quantity]]*-1,Table1[[#This Row],[Quantity]])=0,IF(Table1[[#This Row],[Quantity]]<>"",0,""),IF(Table1[[#This Row],[Action]]="Issue",Table1[[#This Row],[Quantity]]*-1,Table1[[#This Row],[Quantity]])) -> 0 | J31: =IF(Table1[[#This Row],[Cyl Cap (Ltr)]]="","",Table1[[#This Row],[Cyl Cap (Ltr)]]*Table1[[#This Row],[Stock Move]]) -> 0 | K31: =IF(Table1[[#This Row],[Action]]="Issue",Table1[[#This Row],[Quantity]],0) -> 0 | L31: =SUMIF(D:D,Table1[[#This Row],[Item]],I:I) -> 0 | M31: =IF(Table1[[#This Row],[Item]]="","",VLOOKUP(Table1[[#This Row],[Item]],Cylinders!A:D,4,FALSE)) -> Oxygen
A32: 2020-04-22 | B32: =IF(Table1[[#This Row],[Date]]="","",Table1[[#This Row],[Date]]-WEEKDAY(Table1[[#This Row],[Date]],2)+1) -> 2020-04-20 | C32: Opening Stock | D32: Oxy J | E32: Stock | F32: 0 | G32: =IF(Table1[[#This Row],[Item]]="","",VLOOKUP(Table1[[#This Row],[Item]],Cylinders!A:B,2,FALSE)) -> 6800 | H32: =IF(Table1[[#This Row],[Cyl Cap (Ltr)]]="","",Table1[[#This Row],[Cyl Cap (Ltr)]]*Table1[[#This Row],[Quantity]]) -> 0 | I32: =IF(IF(Table1[[#This Row],[Action]]="Issue",Table1[[#This Row],[Quantity]]*-1,Table1[[#This Row],[Quantity]])=0,IF(Table1[[#This Row],[Quantity]]<>"",0,""),IF(Table1[[#This Row],[Action]]="Issue",Table1[[#This Row],[Quantity]]*-1,Table1[[#This Row],[Quantity]])) -> 0 | J32: =IF(Table1[[#This Row],[Cyl Cap (Ltr)]]="","",Table1[[#This Row],[Cyl Cap (Ltr)]]*Table1[[#This Row],[Stock Move]]) -> 0 | K32: =IF(Table1[[#This Row],[Action]]="Issue",Table1[[#This Row],[Quantity]],0) -> 0 | L32: =SUMIF(D:D,Table1[[#This Row],[Item]],I:I) -> 0 | M32: =IF(Table1[[#This Row],[Item]]="","",VLOOKUP(Table1[[#This Row],[Item]],Cylinders!A:D,4,FALSE)) -> Oxygen
A33: 2020-04-22 | B33: =IF(Table1[[#This Row],[Date]]="","",Table1[[#This Row],[Date]]-WEEKDAY(Table1[[#This Row],[Date]],2)+1) -> 2020-04-20 | C33: Opening Stock | D33: CO2 VF | E33: Stock | F33: 0 | G33: =IF(Table1[[#This Row],[Item]]="","",VLOOKUP(Table1[[#This Row],[Item]],Cylinders!A:B,2,FALSE)) -> 3600 | H33: =IF(Table1[[#This Row],[Cyl Cap (Ltr)]]="","",Table1[[#This Row],[Cyl Cap (Ltr)]]*Table1[[#This Row],[Quantity]]) -> 0 | I33: =IF(IF(Table1[[#This Row],[Action]]="Issue",Table1[[#This Row],[Quantity]]*-1,Table1[[#This Row],[Quantity]])=0,IF(Table1[[#This Row],[Quantity]]<>"",0,""),IF(Table1[[#This Row],[Action]]="Issue",Table1[[#This Row],[Quantity]]*-1,Table1[[#This Row],[Quantity]])) -> 0 | J33: =IF(Table1[[#This Row],[Cyl Cap (Ltr)]]="","",Table1[[#This Row],[Cyl Cap (Ltr)]]*Table1[[#This Row],[Stock Move]]) -> 0 | K33: =IF(Table1[[#This Row],[Action]]="Issue",Table1[[#This Row],[Quantity]],0) -> 0 | L33: =SUMIF(D:D,Table1[[#This Row],[Item]],I:I) -> 0 | M33: =IF(Table1[[#This Row],[Item]]="","",VLOOKUP(Table1[[#This Row],[Item]],Cylinders!A:D,4,FALSE)) -> CO2
A34: 2020-04-22 | B34: =IF(Table1[[#This Row],[Date]]="","",Table1[[#This Row],[Date]]-WEEKDAY(Table1[[#This Row],[Date]],2)+1) -> 2020-04-20 | C34: Opening Stock | D34: Equinox AD | E34: Stock | F34: 0 | G34: =IF(Table1[[#This Row],[Item]]="","",VLOOKUP(Table1[[#This Row],[Item]],Cylinders!A:B,2,FALSE)) -> 420 | H34: =IF(Table1[[#This Row],[Cyl Cap (Ltr)]]="","",Table1[[#This Row],[Cyl Cap (Ltr)]]*Table1[[#This Row],[Quantity]]) -> 0 | I34: =IF(IF(Table1[[#This Row],[Action]]="Issue",Table1[[#This Row],[Quantity]]*-1,Table1[[#This Row],[Quantity]])=0,IF(Table1[[#This Row],[Quantity]]<>"",0,""),IF(Table1[[#This Row],[Action]]="Issue",Table1[[#This Row],[Quantity]]*-1,Table1[[#This Row],[Quantity]])) -> 0 | J34: =IF(Table1[[#This Row],[Cyl Cap (Ltr)]]="","",Table1[[#This Row],[Cyl Cap (Ltr)]]*Table1[[#This Row],[Stock Move]]) -> 0 | K34: =IF(Table1[[#This Row],[Action]]="Issue",Table1[[#This Row],[Quantity]],0) -> 0 | L34: =SUMIF(D:D,Table1[[#This Row],[Item]],I:I) -> 0 | M34: =IF(Table1[[#This Row],[Item]]="","",VLOOKUP(Table1[[#This Row],[Item]],Cylinders!A:D,4,FALSE)) -> Entonox
A35: 2020-04-22 | B35: =IF(Table1[[#This Row],[Date]]="","",Table1[[#This Row],[Date]]-WEEKDAY(Table1[[#This Row],[Date]],2)+1) -> 2020-04-20 | C35: Opening Stock | D35: Equinox ED | E35: Stock | F35: 0 | G35: =IF(Table1[[#This Row],[Item]]="","",VLOOKUP(Table1[[#This Row],[Item]],Cylinders!A:B,2,FALSE)) -> 700 | H35: =IF(Table1[[#This Row],[Cyl Cap (Ltr)]]="","",Table1[[#This Row],[Cyl Cap (Ltr)]]*Table1[[#This Row],[Quantity]]) -> 0 | I35: =IF(IF(Table1[[#This Row],[Action]]="Issue",Table1[[#This Row],[Quantity]]*-1,Table1[[#This Row],[Quantity]])=0,IF(Table1[[#This Row],[Quantity]]<>"",0,""),IF(Table1[[#This Row],[Action]]="Issue",Table1[[#This Row],[Quantity]]*-1,Table1[[#This Row],[Quantity]])) -> 0 | J35: =IF(Table1[[#This Row],[Cyl Cap (Ltr)]]="","",Table1[[#This Row],[Cyl Cap (Ltr)]]*Table1[[#This Row],[Stock Move]]) -> 0 | K35: =IF(Table1[[#This Row],[Action]]="Issue",Table1[[#This Row],[Quantity]],0) -> 0 | L35: =SUMIF(D:D,Table1[[#This Row],[Item]],I:I) -> 0 | M35: =IF(Table1[[#This Row],[Item]]="","",VLOOKUP(Table1[[#This Row],[Item]],Cylinders!A:D,4,FALSE)) -> Entonox
A36: 2020-04-22 | B36: =IF(Table1[[#This Row],[Date]]="","",Table1[[#This Row],[Date]]-WEEKDAY(Table1[[#This Row],[Date]],2)+1) -> 2020-04-20 | C36: Opening Stock | D36: Helium F | E36: Stock | F36: 0 | G36: =IF(Table1[[#This Row],[Item]]="","",VLOOKUP(Table1[[#This Row],[Item]],Cylinders!A:B,2,FALSE)) -> 1200 | H36: =IF(Table1[[#This Row],[Cyl Cap (Ltr)]]="","",Table1[[#This Row],[Cyl Cap (Ltr)]]*Table1[[#This Row],[Quantity]]) -> 0 | I36: =IF(IF(Table1[[#This Row],[Action]]="Issue",Table1[[#This Row],[Quantity]]*-1,Table1[[#This Row],[Quantity]])=0,IF(Table1[[#This Row],[Quantity]]<>"",0,""),IF(Table1[[#This Row],[Action]]="Issue",Table1[[#This Row],[Quantity]]*-1,Table1[[#This Row],[Quantity]])) -> 0 | J36: =IF(Table1[[#This Row],[Cyl Cap (Ltr)]]="","",Table1[[#This Row],[Cyl Cap (Ltr)]]*Table1[[#This Row],[Stock Move]]) -> 0 | K36: =IF(Table1[[#This Row],[Action]]="Issue",Table1[[#This Row],[Quantity]],0) -> 0 | L36: =SUMIF(D:D,Table1[[#This Row],[Item]],I:I) -> 0 | M36: =IF(Table1[[#This Row],[Item]]="","",VLOOKUP(Table1[[#This Row],[Item]],Cylinders!A:D,4,FALSE)) -> Helium
A37: 2020-04-22 | B37: =IF(Table1[[#This Row],[Date]]="","",Table1[[#This Row],[Date]]-WEEKDAY(Table1[[#This Row],[Date]],2)+1) -> 2020-04-20 | C37: Stock Adjust | D37: Oxy PD4C | E37: Stock | F37: 0 | G37: =IF(Table1[[#This Row],[Item]]="","",VLOOKUP(Table1[[#This Row],[Item]],Cylinders!A:B,2,FALSE)) -> 430 | H37: =IF(Table1[[#This Row],[Cyl Cap (Ltr)]]="","",Table1[[#This Row],[Cyl Cap (Ltr)]]*Table1[[#This Row],[Quantity]]) -> 0 | I37: =IF(IF(Table1[[#This Row],[Action]]="Issue",Table1[[#This Row],[Quantity]]*-1,Table1[[#This Row],[Quantity]])=0,IF(Table1[[#This Row],[Quantity]]<>"",0,""),IF(Table1[[#This Row],[Action]]="Issue",Table1[[#This Row],[Quantity]]*-1,Table1[[#This Row],[Quantity]])) -> 0 | J37: =IF(Table1[[#This Row],[Cyl Cap (Ltr)]]="","",Table1[[#This Row],[Cyl Cap (Ltr)]]*Table1[[#This Row],[Stock Move]]) -> 0 | K37: =IF(Table1[[#This Row],[Action]]="Issue",Table1[[#This Row],[Quantity]],0) -> 0 | L37: =SUMIF(D:D,Table1[[#This Row],[Item]],I:I) -> 0 | M37: =IF(Table1[[#This Row],[Item]]="","",VLOOKUP(Table1[[#This Row],[Item]],Cylinders!A:D,4,FALSE)) -> Oxygen
A38: 2020-04-22 | B38: =IF(Table1[[#This Row],[Date]]="","",Table1[[#This Row],[Date]]-WEEKDAY(Table1[[#This Row],[Date]],2)+1) -> 2020-04-20 | C38: Stock Adjust | D38: Oxy E | E38: Stock | F38: 0 | G38: =IF(Table1[[#This Row],[Item]]="","",VLOOKUP(Table1[[#This Row],[Item]],Cylinders!A:B,2,FALSE)) -> 680 | H38: =IF(Table1[[#This Row],[Cyl Cap (Ltr)]]="","",Table1[[#This Row],[Cyl Cap (Ltr)]]*Table1[[#This Row],[Quantity]]) -> 0 | I38: =IF(IF(Table1[[#This Row],[Action]]="Issue",Table1[[#This Row],[Quantity]]*-1,Table1[[#This Row],[Quantity]])=0,IF(Table1[[#This Row],[Quantity]]<>"",0,""),IF(Table1[[#This Row],[Action]]="Issue",Table1[[#This Row],[Quantity]]*-1,Table1[[#This Row],[Quantity]])) -> 0 | J38: =IF(Table1[[#This Row],[Cyl Cap (Ltr)]]="","",Table1[[#This Row],[Cyl Cap (Ltr)]]*Table1[[#This Row],[Stock Move]]) -> 0 | K38: =IF(Table1[[#This Row],[Action]]="Issue",Table1[[#This Row],[Quantity]],0) -> 0 | L38: =SUMIF(D:D,Table1[[#This Row],[Item]],I:I) -> 0 | M38: =IF(Table1[[#This Row],[Item]]="","",VLOOKUP(Table1[[#This Row],[Item]],Cylinders!A:D,4,FALSE)) -> Oxygen
A39: 2020-04-22 | B39: =IF(Table1[[#This Row],[Date]]="","",Table1[[#This Row],[Date]]-WEEKDAY(Table1[[#This Row],[Date]],2)+1) -> 2020-04-20 | C39: Stock Adjust | D39: Oxy F4 | E39: Stock | F39: 0 | G39: =IF(Table1[[#This Row],[Item]]="","",VLOOKUP(Table1[[#This Row],[Item]],Cylinders!A:B,2,FALSE)) -> 1360 | H39: =IF(Table1[[#This Row],[Cyl Cap (Ltr)]]="","",Table1[[#This Row],[Cyl Cap (Ltr)]]*Table1[[#This Row],[Quantity]]) -> 0 | I39: =IF(IF(Table1[[#This Row],[Action]]="Issue",Table1[[#This Row],[Quantity]]*-1,Table1[[#This Row],[Quantity]])=0,IF(Table1[[#This Row],[Quantity]]<>"",0,""),IF(Table1[[#This Row],[Action]]="Issue",Table1[[#This Row],[Quantity]]*-1,Table1[[#This Row],[Quantity]])) -> 0 | J39: =IF(Table1[[#This Row],[Cyl Cap (Ltr)]]="","",Table1[[#This Row],[Cyl Cap (Ltr)]]*Table1[[#This Row],[Stock Move]]) -> 0 | K39: =IF(Table1[[#This Row],[Action]]="Issue",Table1[[#This Row],[Quantity]],0) -> 0 | L39: =SUMIF(D:D,Table1[[#This Row],[Item]],I:I) -> 0 | M39: =IF(Table1[[#This Row],[Item]]="","",VLOOKUP(Table1[[#This Row],[Item]],Cylinders!A:D,4,FALSE)) -> Oxygen
A40: 2020-04-22 | B40: =IF(Table1[[#This Row],[Date]]="","",Table1[[#This Row],[Date]]-WEEKDAY(Table1[[#This Row],[Date]],2)+1) -> 2020-04-20 | C40: Stock Adjust | D40: Oxy F4C1T | E40: Stock | F40: 0 | G40: =IF(Table1[[#This Row],[Item]]="","",VLOOKUP(Table1[[#This Row],[Item]],Cylinders!A:B,2,FALSE)) -> 1360 | H40: =IF(Table1[[#This Row],[Cyl Cap (Ltr)]]="","",Table1[[#This Row],[Cyl Cap (Ltr)]]*Table1[[#This Row],[Quantity]]) -> 0 | I40: =IF(IF(Table1[[#This Row],[Action]]="Issue",Table1[[#This Row],[Quantity]]*-1,Table1[[#This Row],[Quantity]])=0,IF(Table1[[#This Row],[Quantity]]<>"",0,""),IF(Table1[[#This Row],[Action]]="Issue",Table1[[#This Row],[Quantity]]*-1,Table1[[#This Row],[Quantity]])) -> 0 | J40: =IF(Table1[[#This Row],[Cyl Cap (Ltr)]]="","",Table1[[#This Row],[Cyl Cap (Ltr)]]*Table1[[#This Row],[Stock Move]]) -> 0 | K40: =IF(Table1[[#This Row],[Action]]="Issue",Table1[[#This Row],[Quantity]],0) -> 0 | L40: =SUMIF(D:D,Table1[[#This Row],[Item]],I:I) -> 0 | M40: =IF(Table1[[#This Row],[Item]]="","",VLOOKUP(Table1[[#This Row],[Item]],Cylinders!A:D,4,FALSE)) -> Oxygen
A41: 2020-04-22 | B41: =IF(Table1[[#This Row],[Date]]="","",Table1[[#This Row],[Date]]-WEEKDAY(Table1[[#This Row],[Date]],2)+1) -> 2020-04-20 | C41: Stock Adjust | D41: Oxy G | E41: Stock | F41: 0 | G41: =IF(Table1[[#This Row],[Item]]="","",VLOOKUP(Table1[[#This Row],[Item]],Cylinders!A:B,2,FALSE)) -> 3400 | H41: =IF(Table1[[#This Row],[Cyl Cap (Ltr)]]="","",Table1[[#This Row],[Cyl Cap (Ltr)]]*Table1[[#This Row],[Quantity]]) -> 0 | I41: =IF(IF(Table1[[#This Row],[Action]]="Issue",Table1[[#This Row],[Quantity]]*-1,Table1[[#This Row],[Quantity]])=0,IF(Table1[[#This Row],[Quantity]]<>"",0,""),IF(Table1[[#This Row],[Action]]="Issue",Table1[[#This Row],[Quantity]]*-1,Table1[[#This Row],[Quantity]])) -> 0 | J41: =IF(Table1[[#This Row],[Cyl Cap (Ltr)]]="","",Table1[[#This Row],[Cyl Cap (Ltr)]]*Table1[[#This Row],[Stock Move]]) -> 0 | K41: =IF(Table1[[#This Row],[Action]]="Issue",Table1[[#This Row],[Quantity]],0) -> 0 | L41: =SUMIF(D:D,Table1[[#This Row],[Item]],I:I) -> 0 | M41: =IF(Table1[[#This Row],[Item]]="","",VLOOKUP(Table1[[#This Row],[Item]],Cylinders!A:D,4,FALSE)) -> Oxygen
A42: 2020-04-22 | B42: =IF(Table1[[#This Row],[Date]]="","",Table1[[#This Row],[Date]]-WEEKDAY(Table1[[#This Row],[Date]],2)+1) -> 2020-04-20 | C42: Issue | D42: Oxy PD4C | E42: Location 1 | F42: 0 | G42: =IF(Table1[[#This Row],[Item]]="","",VLOOKUP(Table1[[#This Row],[Item]],Cylinders!A:B,2,FALSE)) -> 430 | H42: =IF(Table1[[#This Row],[Cyl Cap (Ltr)]]="","",Table1[[#This Row],[Cyl Cap (Ltr)]]*Table1[[#This Row],[Quantity]]) -> 0 | I42: =IF(IF(Table1[[#This Row],[Action]]="Issue",Table1[[#This Row],[Quantity]]*-1,Table1[[#This Row],[Quantity]])=0,IF(Table1[[#This Row],[Quantity]]<>"",0,""),IF(Table1[[#This Row],[Action]]="Issue",Table1[[#This Row],[Quantity]]*-1,Table1[[#This Row],[Quantity]])) -> 0 | J42: =IF(Table1[[#This Row],[Cyl Cap (Ltr)]]="","",Table1[[#This Row],[Cyl Cap (Ltr)]]*Table1[[#This Row],[Stock Move]]) -> 0 | K42: =IF(Table1[[#This Row],[Action]]="Issue",Table1[[#This Row],[Quantity]],0) -> 0 | L42: =SUMIF(D:D,Table1[[#This Row],[Item]],I:I) -> 0 | M42: =IF(Table1[[#This Row],[Item]]="","",VLOOKUP(Table1[[#This Row],[Item]],Cylinders!A:D,4,FALSE)) -> Oxygen

Sheet Current Stock Med Air vs Usage (hidden)
B1: Week Commencing | C1: (All)
B2: Action | C2: (All)
B4: Row Labels | C4: Item | D4: Current Stock | E4: Usage
B5: Medical Air | C5: Air SJ | D5: 0 | E5: 0
C6: Air E | D6: 0 | E6: 0
C7: Air J | D7: 0 | E7: 0
C8: Air F | D8: 0 | E8: 0
C9: Air G | D9: 0 | E9: 0
B10: Grand Total | D10: 0 | E10: 0

Sheet Stock (hidden)
A1: Click in table and Alt-F5 to refresh | I1: Current Stock Oxygen
A2: Row Labels | B2: Item | C2: Current (Cyl) | D2: Current (Ltrs) | E2: To Order | F2: Capacity 120 | I2: Type | J2: Usage | K2: Current Stock
A3: Oxygen | B3: Oxy PD4C | C3: 0 | D3: 0 | E3: =IF(C3="","",IF(F3-C3<0,0,F3-C3)) -> 0 | F3: =VLOOKUP(B3,Cylinders!A:D,3,FALSE) -> 0 | I3: Oxy PD4C
B4: Oxy E | C4: 0 | D4: 0 | E4: =IF(C4="","",IF(F4-C4<0,0,F4-C4)) -> 0 | F4: =VLOOKUP(B4,Cylinders!A:D,3,FALSE) -> 0 | I4: Oxy E
B5: Oxy F4 | C5: 0 | D5: 0 | E5: 0 | F5: =VLOOKUP(B5,Cylinders!A:D,3,FALSE) -> 0 | I5: Oxy F4
B6: Oxy F4C1T | C6: 0 | D6: 0 | E6: 0 | F6: =VLOOKUP(B6,Cylinders!A:D,3,FALSE) -> 0 | I6: Oxy F4C1T
B7: Oxy G | C7: 0 | D7: 0 | E7: 0 | F7: =VLOOKUP(B7,Cylinders!A:D,3,FALSE) -> 0 | I7: Oxy G
B8: Oxy SJ | C8: 0 | D8: 0 | E8: 0 | F8: =VLOOKUP(B8,Cylinders!A:D,3,FALSE) -> 0 | I8: Oxy SJ
B9: Oxy CD | C9: 0 | D9: 0 | E9: 0 | F9: =VLOOKUP(B9,Cylinders!A:D,3,FALSE) -> 0
B10: Oxy D | C10: 0 | D10: 0 | E10: 0 | F10: =VLOOKUP(B10,Cylinders!A:D,3,FALSE) -> 0
B11: Oxy HX | C11: 0 | D11: 0 | E11: 0 | F11: =VLOOKUP(B11,Cylinders!A:D,3,FALSE) -> 0
B12: Oxy J | C12: 0 | D12: 0 | E12: 0 | F12: =VLOOKUP(B12,Cylinders!A:D,3,FALSE) -> 0
A13: Medical Air | B13: Air E | C13: 0 | D13: 0 | E13: 0 | F13: =VLOOKUP(B13,Cylinders!A:D,3,FALSE) -> 0
B14: Air F | C14: 0 | D14: 0 | E14: 0 | F14: =VLOOKUP(B14,Cylinders!A:D,3,FALSE) -> 0
B15: Air G | C15: 0 | D15: 0 | E15: 0 | F15: =VLOOKUP(B15,Cylinders!A:D,3,FALSE) -> 0
B16: Air SJ | C16: 0 | D16: 0 | E16: 0 | F16: =VLOOKUP(B16,Cylinders!A:D,3,FALSE) -> 0
B17: Air J | C17: 0 | D17: 0 | E17: 0 | F17: =VLOOKUP(B17,Cylinders!A:D,3,FALSE) -> 0
A18: CO2 | B18: CO2 C | C18: 0 | D18: 0 | E18: 0 | F18: =VLOOKUP(B18,Cylinders!A:D,3,FALSE) -> 0
B19: CO2 E | C19: 0 | D19: 0 | E19: 0 | F19: =VLOOKUP(B19,Cylinders!A:D,3,FALSE) -> 0
B20: CO2 VF | C20: 0 | D20: 0 | E20: 0 | F20: =VLOOKUP(B20,Cylinders!A:D,3,FALSE) -> 0
B21: CO2 VK | C21: 0 | D21: 0 | E21: 0 | F21: =VLOOKUP(B21,Cylinders!A:D,3,FALSE) -> 0
A22: Nitrous Oxide | B22: Nitrous E | C22: 0 | D22: 0 | E22: 0 | F22: =VLOOKUP(B22,Cylinders!A:D,3,FALSE) -> 0
B23: Nitrous F | C23: 0 | D23: 0 | E23: 0 | F23: =VLOOKUP(B23,Cylinders!A:D,3,FALSE) -> 0
B24: Nitrous G | C24: 0 | D24: 0 | E24: 0 | F24: =VLOOKUP(B24,Cylinders!A:D,3,FALSE) -> 0
A25: (blank) | B25: (blank) | F25: =VLOOKUP(B25,Cylinders!A:D,3,FALSE) -> 
A26: Entonox | B26: Equinox AD | C26: 0 | D26: 0 | E26: 0 | F26: =VLOOKUP(B26,Cylinders!A:D,3,FALSE) -> 0
B27: Equinox F | C27: 0 | D27: 0 | E27: 0 | F27: =VLOOKUP(B27,Cylinders!A:D,3,FALSE) -> 0
B28: Equinox G | C28: 0 | D28: 0 | E28: 0 | F28: =VLOOKUP(B28,Cylinders!A:D,3,FALSE) -> 0
B29: Equinox D | C29: 0 | D29: 0 | E29: 0 | F29: =VLOOKUP(B29,Cylinders!A:D,3,FALSE) -> 0
B30: Equinox ED | C30: 0 | D30: 0 | E30: 0 | F30: =VLOOKUP(B30,Cylinders!A:D,3,FALSE) -> 0
B31: Equinox EX | C31: 0 | D31: 0 | E31: 0 | F31: =VLOOKUP(B31,Cylinders!A:D,3,FALSE) -> 0
A32: Helium | B32: Helium F | C32: 0 | D32: 0 | E32: 0 | F32: =VLOOKUP(B32,Cylinders!A:D,3,FALSE) -> 0
F33: =VLOOKUP(B33,Cylinders!A:D,3,FALSE) -> 

Sheet Stock Use Per Location (hidden)
A1: Week Commencing | B1: 2020-04-20 | K1: Date | L1: Location | M1: Cylinder Type | N1: Issued | O1: Qty Received
A2: Action | B2: (All)
A4: Sum of Total Cap (Ltr) | B4: Column Labels
A5: Locations | B5: Oxygen | C5: Grand Total
A6: Location 1 | B6: 0 | C6: 0
A7: Grand Total | B7: 0 | C7: 0

Sheet Stock Check to Order (hidden)
A1: Row Labels
A2: Oxy G
A3: Oxy PD4C
A4: Oxy E
A5: Oxy F4
A6: Oxy F4C1T
A7: Oxy SJ
A8: Air E
A9: Air F
A10: Air G
A11: Air SJ
A12: CO2 C
A13: CO2 E
A14: Equinox AD
A15: Equinox F
A16: Equinox G
A17: Nitrous E
A18: Nitrous F
A19: Nitrous G
A20: Oxy D
A21: Oxy CD
A22: Oxy HX
A23: Air J
A24: CO2 VF
A25: CO2 VK
A26: Equinox D
A27: Equinox ED
A28: Equinox EX
A29: Helium F
A30: Oxy J
A31: Grand Total

Sheet Cylinders (hidden)
A1: Cylinder | B1: Capacity | C1: Capacity 120 | D1: GasType
A2: Oxy PD4C | B2: 430 | C2: 0 | D2: Oxygen | G2: Oxygen
A3: Oxy E | B3: 680 | C3: 0 | D3: Oxygen | G3: Medical Air
A4: Oxy F4 | B4: 1360 | C4: 0 | D4: Oxygen | G4: CO2
A5: Oxy F4C1T | B5: 1360 | C5: 0 | D5: Oxygen | G5: Entonox
A6: Oxy G | B6: 3400 | C6: 0 | D6: Oxygen | G6: Nitrous Oxide
A7: Oxy SJ | B7: 7300 | C7: 0 | D7: Oxygen | G7: Helium
A8: Air E | B8: 640 | C8: 0 | D8: Medical Air
A9: Air F | B9: 1280 | C9: 0 | D9: Medical Air
A10: Air G | B10: 3200 | C10: 0 | D10: Medical Air
A11: Air SJ | B11: 6800 | C11: 0 | D11: Medical Air
A12: CO2 C | B12: 450 | C12: 0 | D12: CO2
A13: CO2 E | B13: 1800 | C13: 0 | D13: CO2
A14: Equinox AD | B14: 420 | C14: 0 | D14: Entonox
A15: Equinox F | B15: 2000 | C15: 0 | D15: Entonox
A16: Equinox G | B16: 5000 | C16: 0 | D16: Entonox
A17: Nitrous E | B17: 1800 | C17: 0 | D17: Nitrous Oxide
A18: Nitrous F | B18: 3600 | C18: 0 | D18: Nitrous Oxide
A19: Nitrous G | B19: 9000 | C19: 0 | D19: Nitrous Oxide
A20: Helium F | B20: 1200 | C20: 0 | D20: Helium
A21: Oxy D | B21: 340 | C21: 0 | D21: Oxygen
A22: Oxy CD | B22: 460 | C22: 0 | D22: Oxygen
A23: Oxy HX | B23: 2300 | C23: 0 | D23: Oxygen
A24: Oxy J | B24: 6800 | C24: 0 | D24: Oxygen
A25: Air J | B25: 6400 | C25: 0 | D25: Medical Air
A26: CO2 VF | B26: 3600 | C26: 0 | D26: CO2
A27: CO2 VK | B27: 3600 | C27: 0 | D27: CO2
A28: Equinox D | B28: 500 | C28: 0 | D28: Entonox
A29: Equinox ED | B29: 700 | C29: 0 | D29: Entonox
A30: Equinox EX | B30: 3500 | C30: 0 | D30: Entonox
A31: Equinox EX | B31: 3500 | C31: 0 | D31: Entonox

Sheet Locations (hidden)
A1: Locations
A2: Stock
A3: Location 1
A4: Location 2
A5: Location 3
A6: Location 4
A7: Location 5
A8: Location 6
A9: Location 7

Sheet Current Stock Oxygen vs Usage (hidden)
B1: Week Commencing | C1: (All)
B2: Action | C2: (All)
B4: Row Labels | C4: Item | D4: Current Stock | E4: Usage
B5: Oxygen | C5: Oxy D | D5: 0 | E5: 0
C6: Oxy SJ | D6: 0 | E6: 0
C7: Oxy J | D7: 0 | E7: 0
C8: Oxy F4 | D8: 0 | E8: 0
C9: Oxy CD | D9: 0 | E9: 0
C10: Oxy F4C1T | D10: 0 | E10: 0
C11: Oxy HX | D11: 0 | E11: 0
C12: Oxy G | D12: 0 | E12: 0
C13: Oxy E | D13: 0 | E13: 0
C14: Oxy PD4C | D14: 0 | E14: 0
B15: Grand Total | D15: 0 | E15: 0

Sheet Stock Audit (hidden)
A1: Item | B1: Current (Cyl) | E1: Item | F1: Current (Cyl) | G1: Current (Cyl) | H1: Difference
A2: Oxy PD4C | B2: 4 | E2: Oxy PD4C | F2: 0 | G2: -41 | H2: =B2-F2 -> 4
A3: Oxy E | B3: 4 | E3: Oxy E | F3: 0 | G3: -31 | H3: =B3-F3 -> 4
A4: Oxy F4 | B4: 4 | E4: Oxy F4 | F4: 0 | G4: -35 | H4: 4
A5: Oxy F4C1T | B5: 4 | E5: Oxy F4C1T | F5: 0 | G5: -40 | H5: 4
A6: Oxy G | B6: 4 | E6: Oxy G | F6: 0 | G6: -24 | H6: 4
A7: Oxy SJ | B7: 0 | E7: Oxy SJ | F7: 0 | G7: -17 | H7: 0
A8: Oxy CD | B8: 0 | E8: Oxy CD | F8: 0 | G8: -125 | H8: 0
A9: Oxy D | B9: 0 | E9: Oxy D | F9: 0 | G9: -10 | H9: 0
A10: Oxy HX | B10: 0 | E10: Oxy HX | F10: 0 | G10: -6 | H10: 0
A11: Oxy J | B11: 0 | E11: Oxy J | F11: 0 | G11: -14 | H11: 0
A12: Air E | B12: 0 | E12: Air E | F12: 0 | G12: -46 | H12: 0
A13: Air F | B13: 0 | E13: Air F | F13: 0 | G13: -39 | H13: 0
A14: Air G | B14: 0 | E14: Air G | F14: 0 | G14: -45 | H14: 0
A15: Air SJ | B15: 0 | E15: Air SJ | F15: 0 | G15: -15 | H15: 0
A16: Air J | B16: 0 | E16: Air J | F16: 0 | H16: 0
A17: CO2 C | B17: 0 | E17: CO2 C | F17: 0 | H17: 0
A18: CO2 E | B18: 0 | E18: CO2 E | F18: 0 | H18: 0
A19: CO2 VF | B19: 0 | E19: CO2 VF | F19: 0 | H19: 0
A20: CO2 VK | B20: 0 | E20: CO2 VK | F20: 0 | H20: 0
A21: Nitrous E | B21: 0 | E21: Nitrous E | F21: 0 | H21: 0
A22: Nitrous F | B22: 0 | E22: Nitrous F | F22: 0 | H22: 0
A23: Nitrous G | B23: 0 | E23: Nitrous G | F23: 0 | H23: 0
A24: (blank) | E24: (blank) | H24: 0
A25: Equinox AD | B25: 0 | E25: Equinox AD | F25: 0 | H25: 0
A26: Equinox F | B26: 0 | E26: Equinox F | F26: 0 | H26: 0
A27: Equinox G | B27: 0 | E27: Equinox G | F27: 0 | H27: 0
A28: Equinox D | B28: 0 | E28: Equinox D | F28: 0 | H28: 0
A29: Equinox ED | B29: 0 | E29: Equinox ED | F29: 0 | H29: 0
A30: Equinox EX | B30: 0 | E30: Equinox EX | F30: 0 | H30: 0
A31: Helium F | B31: 0 | E31: Helium F | F31: 0 | H31: 0
H32: 0
H33: 0
H34: 0
H35: 0
H36: 0
H37: 0
H38: 0
H39: 0
H40: 0
H41: 0
H42: 0
H43: 0
H44: 0
H45: 0
H46: 0
H47: 0
H48: 0
H49: 0
H50: 0
H51: 0
H52: 0
H53: 0
H54: 0
H55: 0
H56: 0
H57: 0
H58: 0
H59: 0
H60: 0
H61: 0
H62: 0
H63: 0
H64: 0
H65: 0
H66: 0
H67: =B67-F67 -> 0
H68: 0
H69: 0
H70: 0
H71: 0
H72: 0
H73: 0
H74: 0
H75: 0
H76: 0
H77: 0
H78: 0
H79: 0
H80: 0
H81: 0
H82: 0
H83: 0
H84: 0
H85: 0
H86: 0
H87: 0
H88: 0
H89: 0
H90: 0
H91: 0
H92: 0
H93: 0
H94: 0
H95: 0
H96: 0
H97: 0
H98: 0
H99: 0
